bitfinex/quotes_SOLUSD_20241020
["timestamp","ask_amount","ask_price","bid_price","bid_amount"]
[1729408282307,23.776884,159.2,159.1,20.1]
[1729408286289,0.82947675,159.21,159.11,0.1]
[1729408286890,0.82947675,159.21,159.12,0.1]
[1729408287095,0.82947675,159.21,159.13,0.1]
[1729408287817,16.495,159.22,159.13,0.2]
[1729408287991,16.495,159.22,159.14,0.1]
[1729408288192,16.495,159.22,159.14,20.1]
[1729408292000,16.495,159.22,159.14,20.0]
[1729408292524,16.495,159.22,159.13,0.1]
[1729408293402,16.495,159.22,159.14,0.1]
[1729408294004,16.495,159.22,159.15,0.08518726]
[1729408298704,16.495,159.22,159.15,2.59829126]
[1729408306127,16.495,159.22,159.15,2.69829126]
[1729408307527,6.0239,159.23,159.16,0.1]
[1729408307706,16.615,159.26,159.17,0.1]
[1729408309321,16.615,159.26,159.17,6.25593332]
[1729408309732,16.615,159.26,159.18,20.0]
[1729408311812,17.36462494,159.26,159.19,0.08516585]
[1729408312534,16.615,159.26,159.19,0.08516585]
[1729408314012,16.615,159.26,159.19,0.18516585]
[1729408314517,16.615,159.26,159.2,0.0851605]
[1729408314720,16.615,159.26,159.2,0.1851605]
[1729408315440,16.615,159.26,159.2,0.1]
[1729408315936,0.2215816,159.28,159.21,0.1]
[1729408320540,0.2215816,159.28,159.2,20.1]
[1729408323425,0.2215816,159.28,159.21,0.1]
[1729408325849,0.2215816,159.28,159.22,0.08514981]
[1729408326048,0.2215816,159.28,159.21,0.1]
[1729408326860,0.2215816,159.28,159.22,0.1]
[1729408327020,0.2215816,159.28,159.24,0.1]
[1729408328647,0.2215816,159.28,159.25,20.1]
[1729408329836,0.2215816,159.28,159.25,21.35526543]
[1729408330422,0.2215816,159.28,159.25,21.45526543]
[1729408330747,0.2215816,159.28,159.27,20.0]
[1729408331847,0.2215816,159.28,159.26,23.876884]
[1729408332023,0.2215816,159.28,159.27,20.0]
[1729408332223,8.16e-05,159.28,159.27,45.13195194]
[1729408332438,8.16e-05,159.28,159.27,45.23195194]
[1729408333125,16.5789,159.34,159.28,0.1]
[1729408333330,16.5789,159.34,159.29,20.0]
[1729408333840,16.5789,159.34,159.28,20.1]
[1729408334230,21.6854,159.41,159.28,35.3005]
[1729408334547,23.776884,159.4,159.29,1.25491556]
[1729408334847,15.412,159.37,159.27,0.1]
[1729408336143,15.412,159.37,159.26,24.92503816]
[1729408336547,15.412,159.37,159.26,25.02503816]
[1729408336946,15.412,159.37,159.26,24.92503816]
[1729408337742,15.412,159.37,159.27,0.1]
[1729408338154,15.412,159.37,159.26,24.92503816]
[1729408338351,15.412,159.37,159.27,0.1]
[1729408338657,6.4378,159.36,159.26,4.82503816]
[1729408338834,6.4378,159.36,159.25,20.1]
[1729408339037,12.7129,159.36,159.25,20.0]
[1729408339236,15.412,159.33,159.25,20.0]
[1729408344939,15.412,159.33,159.23,4.89213578]
[1729408345147,6.4378,159.32,159.23,4.79213578]
[1729408345366,6.4378,159.32,159.22,7.143437]
[1729408346364,6.4378,159.32,159.23,20.0]
[1729408349060,6.4378,159.32,159.24,0.1]
[1729408351793,6.4378,159.32,159.23,20.2]
[1729408352072,6.4378,159.32,159.24,0.1]
[1729408361554,6.4378,159.32,159.23,26.75202826]
[1729408362871,6.4378,159.32,159.24,0.1]
[1729408363478,6.4378,159.32,159.23,26.75202826]
[1729408364068,6.4378,159.32,159.23,26.55202826]
[1729408364264,6.4378,159.32,159.23,6.55202826]
[1729408365371,6.2772,159.31,159.24,20.0]
[1729408365690,16.6138,159.3,159.24,20.0]
[1729408369865,22.8913,159.3,159.21,20.0]
[1729408371379,6.4743,159.28,159.2,20.0]
[1729408377578,17.43145453,159.3,159.2,20.0]
[1729408377782,17.43145453,159.3,159.2,20.1]
[1729408379965,17.43145453,159.3,159.2,0.1]
[1729408380367,17.43145453,159.3,159.21,20.0]
[1729408381690,17.43145453,159.3,159.2,20.1]
[1729408381900,17.43145453,159.3,159.2,20.0]
[1729408383992,16.6138,159.3,159.2,20.0]
[1729408385285,17.43143847,159.3,159.2,20.0]
[1729408390199,16.6138,159.3,159.22,20.1]
[1729408390383,6.0471,159.32,159.23,6.25593332]
[1729408390583,6.0471,159.32,159.24,20.0]
[1729408393886,16.3467,159.31,159.22,20.0]
[1729408394082,16.3467,159.31,159.21,20.0]
[1729408394398,16.3467,159.31,159.21,20.1]
[1729408394714,16.3467,159.31,159.21,20.0]
[1729408395514,16.3467,159.31,159.2,0.1]
[1729408395700,23.776884,159.3,159.19,20.0]
[1729408395889,30.054384,159.3,159.19,20.0]
[1729408396488,6.3585,159.29,159.19,20.0]
[1729408398415,12.6364,159.29,159.18,6.15593332]
[1729408398596,23.776884,159.28,159.18,6.15593332]
[1729408399207,24.56839554,159.28,159.18,6.15593332]
[1729408399701,24.56839554,159.28,159.19,20.0]
[1729408399903,16.3467,159.27,159.19,20.0]
[1729408400707,16.3467,159.27,159.21,20.0]
[1729408415124,16.7108285,159.31,159.21,26.35593332]
[1729408415420,16.7108285,159.31,159.23,20.0]
[1729408418609,16.7108285,159.31,159.22,20.1]
[1729408430318,16.7108285,159.31,159.22,20.0]
[1729408430838,23.776884,159.3,159.21,17.59820206]
[1729408431036,6.3777,159.29,159.21,11.44226874]
[1729408432335,6.3777,159.29,159.22,20.0]
[1729408438944,6.3777,159.29,159.21,11.44226874]
[1729408438945,6.3777,159.29,159.21,4.88960372]
[1729408439135,6.3777,159.29,159.21,6.65313736]
[1729408439435,6.3777,159.29,159.22,20.0]
[1729408446122,16.7108285,159.31,159.22,20.1]
[1729408446329,15.9194,159.31,159.22,27.34343737]
[1729408446535,15.9194,159.31,159.22,49.23187069]
[1729408447630,15.9194,159.31,159.24,20.0]
[1729408447825,15.9194,159.31,159.24,20.1]
[1729408448951,15.9194,159.31,159.24,20.0]
[1729408449641,15.9194,159.31,159.24,20.1]
[1729408450842,15.9194,159.31,159.24,20.0]
[1729408451441,15.9194,159.31,159.24,20.1]
[1729408451650,15.9194,159.31,159.24,20.0]
[1729408451948,15.9194,159.31,159.24,20.1]
[1729408452151,15.9194,159.31,159.24,25.04454065]
[1729408453636,15.9194,159.31,159.24,24.94454065]
[1729408471556,15.9194,159.31,159.24,25.04454065]
[1729408474147,15.9194,159.31,159.24,24.94454065]
[1729408474349,15.9194,159.31,159.24,25.04454065]
[1729408479562,15.9194,159.31,159.24,31.20047397]
[1729408481559,15.9194,159.31,159.24,25.04454065]
[1729408486065,15.9194,159.31,159.24,24.94454065]
[1729408486368,15.9194,159.31,159.24,25.04454065]
[1729408488477,15.9194,159.31,159.24,24.94454065]
[1729408489264,15.9194,159.31,159.24,25.04454065]
[1729408492671,15.9194,159.31,159.24,25.14454065]
[1729408492980,15.9194,159.31,159.24,32.28797802]
[1729408494560,15.9194,159.31,159.24,32.08797802]
[1729408521074,15.9194,159.31,159.24,27.14343737]
[1729408524415,15.9194,159.31,159.24,20.0]
[1729408528095,6.2318,159.3,159.24,20.0]
[1729408528290,6.99593498,159.3,159.23,6.53974863]
[1729408528702,15.682,159.29,159.23,6.53974863]
[1729408529502,15.682,159.29,159.24,20.0]
[1729408535205,23.776884,159.28,159.23,6.53974863]
[1729408536712,6.6465,159.27,159.24,20.0]
[1729408539303,15.5774,159.25,159.24,20.0]
[1729408539518,39.354284,159.25,159.14,38.77972661]
[1729408539817,6.6465,159.23,159.15,6.54107066]
[1729408541301,6.6465,159.23,159.16,20.0]
[1729408544116,16.28226074,159.25,159.16,20.0]
[1729408544435,16.28226074,159.25,159.16,33.29931724]
[1729408557338,16.28226074,159.25,159.16,27.14338392]
[1729408562641,16.28226074,159.25,159.16,33.29931724]
[1729408565733,15.5774,159.25,159.18,20.0]
[1729408566725,6.6465,159.27,159.18,20.0]
[1729408567919,7.3981855,159.27,159.18,20.0]
[1729408568837,7.3981855,159.27,159.19,6.15593332]
[1729408569239,7.3981855,159.27,159.2,20.0]
[1729408569829,7.3981855,159.27,159.2,26.15593332]
[1729408572431,15.8297,159.26,159.18,20.0]
[1729408572618,15.8297,159.26,159.17,6.53962415]
[1729408573224,23.776884,159.25,159.17,6.53962415]
[1729408573746,23.776884,159.25,159.15,13.38450458]
[1729408573922,23.776884,159.25,159.16,6.54100639]
[1729408574742,30.056284,159.25,159.17,20.0]
[1729408574919,23.776884,159.25,159.17,20.0]
[1729408578850,6.1856,159.24,159.17,20.0]
[1729408579447,16.216,159.22,159.12,6.15593332]
[1729408579623,16.96792593,159.22,159.12,6.15593332]
[1729408579820,16.96792593,159.22,159.13,6.54164036]
[1729408580747,16.96792593,159.22,159.14,20.0]
[1729408581847,23.776884,159.18,159.13,6.54164036]
[1729408582037,23.776884,159.18,159.08,6.15593332]
[1729408582228,23.776884,159.18,159.09,6.53652042]
[1729408582745,16.216,159.19,159.09,12.79245374]
[1729408582948,16.216,159.19,159.1,6.15593332]
[1729408583249,16.96808746,159.19,159.11,20.0]
[1729408583438,30.0,159.16,159.11,20.0]
[1729408584458,16.96808746,159.19,159.11,20.0]
[1729408587367,23.776884,159.18,159.11,20.0]
[1729408587523,23.776884,159.18,159.1,20.0]
[1729408592330,23.776884,159.18,159.07,24.94434913]
[1729408592630,23.776884,159.18,159.09,6.53884733]
[1729408592829,23.776884,159.18,159.1,20.0]
[1729408606238,23.776884,159.16,159.1,20.0]
[1729408614349,6.1579,159.17,159.1,20.0]
[1729408614553,16.96808746,159.19,159.1,20.0]
[1729408614861,23.776884,159.18,159.07,24.84434913]
[1729408615053,23.776884,159.18,159.1,20.0]
[1729408622990,23.776884,159.18,159.1,24.92156259]
[1729408625184,23.776884,159.18,159.1,4.92156259]
[1729408625479,23.776884,159.18,159.1,20.0]
[1729408628756,16.96808746,159.19,159.1,20.0]
[1729408635362,16.96808746,159.19,159.08,20.0]
[1729408635682,16.96808746,159.19,159.1,20.0]
[1729408639386,23.776884,159.18,159.1,20.0]
[1729408645693,23.776884,159.18,159.09,20.0]
[1729408645990,23.776884,159.18,159.09,26.54609454]
[1729408652184,16.96808746,159.19,159.09,26.54609454]
[1729408652485,16.96808746,159.19,159.11,20.0]
[1729408654897,6.531,159.21,159.11,22.71153332]
[1729408655082,6.531,159.21,159.12,26.15593332]
[1729408656491,6.531,159.21,159.12,20.0]
[1729408660277,6.531,159.21,159.12,26.15593332]
[1729408667197,0.75192593,159.22,159.14,20.0]
[1729408667388,0.75192593,159.22,159.14,26.15593332]
[1729408667592,0.75192593,159.22,159.15,6.15593332]
[1729408667906,0.75192593,159.22,159.16,20.0]
[1729408671485,15.1837,159.23,159.16,20.0]
[1729408672515,11.08611027,159.26,159.16,42.71153332]
[1729408672816,11.08611027,159.26,159.18,20.0]
[1729408676995,11.08611027,159.26,159.17,26.15593332]
[1729408682816,11.08611027,159.26,159.17,20.0]
[1729408683000,11.08611027,159.26,159.17,26.15593332]
[1729408689016,11.08611027,159.26,159.17,20.0]
[1729408699027,23.776884,159.28,159.17,20.0]
[1729408705510,23.776884,159.28,159.17,26.15593332]
[1729408709138,22.56727576,159.29,159.17,26.25593332]
[1729408714020,23.776884,159.28,159.17,26.15593332]
[1729408718838,23.776884,159.28,159.17,20.0]
[1729408719229,23.776884,159.26,159.16,21.7325548]
[1729408719431,23.776884,159.26,159.16,6.5488548]
[1729408719432,16.5728,159.25,159.16,6.5488548]
[1729408719938,6.3044,159.24,159.16,6.5488548]
[1729408720140,40.349684,159.23,159.16,6.5488548]
[1729408720346,40.349684,159.23,159.14,6.548855]
[1729408721437,41.09887209,159.23,159.15,20.0]
[1729408727071,47.37907209,159.23,159.15,20.0]
[1729408727952,41.09887209,159.23,159.15,20.0]
[1729408735142,47.37907209,159.23,159.14,20.0]
[1729408736540,16.5728,159.23,159.14,20.0]
[1729408736759,16.5728,159.23,159.13,20.0]
[1729408736935,16.5728,159.23,159.13,26.55140054]
[1729408737336,17.32201133,159.23,159.13,26.55140054]
[1729408739265,23.776884,159.22,159.13,26.55140054]
[1729408747265,23.776884,159.2,159.13,26.55140054]
[1729408747956,6.161,159.19,159.13,26.55140054]
[1729408748158,6.92067658,159.19,159.13,26.55140054]
[1729408753771,15.6367,159.18,159.13,26.55140054]
[1729408754083,15.6367,159.18,159.09,20.0]
[1729408754256,15.6367,159.18,159.12,20.0]
[1729408780487,15.6367,159.18,159.09,20.0]
[1729408780689,15.6367,159.18,159.12,20.0]
[1729408782799,0.75967658,159.19,159.12,20.0]
[1729408783169,0.75967658,159.19,159.14,20.0]
[1729408783395,16.2746,159.22,159.14,20.0]
[1729408788401,0.74921133,159.23,159.14,20.1]
[1729408790278,0.74921133,159.23,159.14,26.25593332]
[1729408791601,0.74921133,159.23,159.14,31.01004597]
[1729408793780,0.74921133,159.23,159.15,6.15593332]
[1729408794002,0.74921133,159.23,159.15,23.876884]
[1729408794205,22.5158,159.27,159.16,26.25593332]
[1729408794899,23.29974571,159.27,159.16,26.25593332]
[1729408796208,23.29974571,159.27,159.18,20.0]
[1729408797614,23.29974571,159.27,159.18,26.15593332]
[1729408801607,22.5158,159.27,159.18,26.15593332]
[1729408801811,16.2746,159.27,159.2,20.0]
[1729408801999,22.539,159.31,159.2,20.0]
[1729408802199,22.539,159.31,159.19,20.0]
[1729408802402,22.539,159.31,159.19,49.93281732]
[1729408802625,22.539,159.31,159.19,50.03281732]
[1729408802915,23.32276836,159.31,159.21,20.0]
[1729408806513,23.32276836,159.31,159.22,20.0]
[1729408807426,23.32276836,159.31,159.22,6.15593332]
[1729408807807,23.32276836,159.31,159.23,20.0]
[1729408811315,16.1081,159.31,159.25,20.0]
[1729408811508,22.539,159.35,159.25,20.0]
[1729408812905,22.539,159.35,159.26,23.776884]
[1729408813109,22.539,159.35,159.27,20.0]
[1729408814419,22.539,159.35,159.26,20.0]
[1729408816923,28.8145,159.35,159.23,20.0]
[1729408817122,23.776884,159.34,159.23,20.0]
[1729408817524,23.776884,159.34,159.22,21.27062579]
[1729408818712,23.776884,159.34,159.23,20.0]
[1729408823335,23.776884,159.34,159.25,20.0]
[1729408823720,23.776884,159.34,159.23,20.0]
[1729408825429,23.776884,159.34,159.22,21.27062579]
[1729408827738,23.776884,159.34,159.23,20.0]
[1729408833428,23.776884,159.34,159.24,6.286]
[1729408833738,23.776884,159.34,159.23,20.0]
[1729408845053,22.539,159.35,159.23,20.0]
[1729408846529,22.539,159.35,159.25,20.0]
[1729408847333,22.539,159.35,159.27,20.0]
[1729408852844,0.78345519,159.36,159.27,36.0938]
[1729408853342,0.78345519,159.36,159.28,23.776884]
[1729408853554,21.5008,159.39,159.29,20.0]
[1729408853937,21.5008,159.39,159.31,20.0]
[1729408854844,22.37655629,159.39,159.33,20.0]
[1729408856735,21.5008,159.39,159.33,20.0]
[1729408856939,15.0692,159.39,159.33,20.0]
[1729408858053,0.25,159.4,159.33,20.0]
[1729408863353,0.25,159.4,159.34,0.07213627]
[1729408864139,0.25,159.4,159.33,20.0]
[1729408864340,0.25,159.4,159.34,0.07213627]
[1729408864759,0.25,159.4,159.33,20.0]
[1729408867169,0.25,159.4,159.35,20.0]
[1729408870645,0.25,159.4,159.37,20.0]
[1729408873264,0.25,159.4,159.35,20.0]
[1729408891264,0.25,159.4,159.36,23.776884]
[1729408891468,0.25,159.4,159.37,20.0]
[1729408896373,0.25,159.4,159.37,24.83615842]
[1729408897583,22.6687667,159.43,159.37,24.83615842]
[1729408899294,22.6687667,159.43,159.35,20.0]
[1729408899799,22.6687667,159.43,159.35,24.84679796]
[1729408901985,6.2727,159.42,159.35,20.0]
[1729408902206,5.2133,159.4,159.35,20.0]
[1729408902373,16.0793,159.39,159.29,1.09058333]
[1729408902566,16.0793,159.39,159.3,20.0]
[1729408902778,16.0793,159.39,159.33,20.0]
[1729408902975,16.0793,159.39,159.32,6.54904643]
[1729408903593,23.27997406,159.39,159.32,6.54904643]
[1729408903794,30.0,159.37,159.32,6.54904643]
[1729408903982,30.0,159.37,159.29,1.09058333]
[1729408904187,30.0,159.37,159.31,6.54987092]
[1729408905275,28.0,159.37,159.32,20.0]
[1729408906594,17.00587406,159.39,159.32,20.0]
[1729408907178,17.00587406,159.39,159.27,20.07216798]
[1729408907383,17.00587406,159.39,159.3,20.0]
[1729408908290,16.00587406,159.39,159.3,20.0]
[1729408911182,14.50587406,159.39,159.3,20.0]
[1729408915888,13.00587406,159.39,159.3,20.0]
[1729408916511,13.00587406,159.39,159.3,24.78543383]
[1729408917602,13.00587406,159.39,159.3,4.78543383]
[1729408917905,13.00587406,159.39,159.31,20.0]
[1729408918107,13.00587406,159.39,159.29,26.54884812]
[1729408918401,13.00587406,159.39,159.29,6.54884812]
[1729408918607,11.50587406,159.39,159.29,6.54884812]
[1729408919704,11.50587406,159.39,159.3,20.0]
[1729408929719,6.521,159.37,159.3,20.0]
[1729408930517,15.5527,159.36,159.3,20.0]
[1729408930695,15.5527,159.36,159.27,20.0]
[1729408931801,30.0,159.35,159.27,20.0]
[1729408932000,30.92033545,159.35,159.27,20.0]
[1729408936007,0.92033545,159.35,159.27,20.0]
[1729408936398,15.8388,159.32,159.27,20.0]
[1729408936601,15.8388,159.32,159.22,15.0531]
[1729408936798,15.8388,159.32,159.23,6.55255563]
[1729408937609,23.776884,159.31,159.23,6.55255563]
[1729408937814,24.69740702,159.31,159.23,6.55255563]
[1729408939110,30.97440702,159.31,159.23,6.55255563]
[1729408939318,30.97440702,159.31,159.19,20.0]
[1729408939518,30.97440702,159.31,159.21,20.0]
[1729408943611,23.776884,159.29,159.2,6.55366838]
[1729408943815,30.054884,159.29,159.2,6.55366838]
[1729408944738,30.054884,159.29,159.21,20.0]
[1729408946201,22.4516,159.3,159.16,0.07221786]
[1729408946202,23.776884,159.24,159.16,0.07221786]
[1729408946396,30.056684,159.24,159.15,6.55601787]
[1729408947217,23.776884,159.23,159.15,6.55601787]
[1729408947403,15.8388,159.22,159.11,16.4102]
[1729408947804,15.8388,159.22,159.13,6.55709711]
[1729408949633,15.8388,159.22,159.14,20.0]
[1729408959123,0.91279292,159.24,159.13,26.55581611]
[1729408961314,0.91279292,159.24,159.13,26.65581611]
[1729408961519,0.91279292,159.24,159.13,32.81176482]
[1729408963333,22.7066,159.26,159.13,32.81176482]
[1729408963832,22.7066,159.26,159.16,15.3683]
[1729408964137,23.61918906,159.26,159.17,20.0]
[1729408967740,23.776884,159.25,159.14,20.0]
[1729408967925,23.776884,159.25,159.13,6.55581611]
[1729408969242,23.776884,159.25,159.14,20.0]
[1729408969621,23.776884,159.25,159.13,20.0]
[1729408969845,23.776884,159.25,159.13,26.55578772]
[1729408970341,23.776884,159.25,159.13,31.3992928]
[1729408976248,23.776884,159.25,159.13,26.55578772]
[1729408976421,6.2147,159.21,159.13,26.55578772]
[1729408977632,7.12689038,159.21,159.13,26.55578772]
[1729408984039,7.12689038,159.21,159.13,6.55578772]
[1729408985249,7.12689038,159.21,159.14,20.0]
[1729409005547,6.94029571,159.21,159.14,20.0]
[1729409016767,23.776884,159.2,159.14,20.0]
[1729409016974,23.776884,159.2,159.09,21.09212507]
[1729409017148,23.776884,159.2,159.12,20.0]
[1729409028778,23.776884,159.2,159.09,20.0]
[1729409031068,23.52564351,159.2,159.09,20.0]
[1729409041079,23.52564351,159.2,159.09,23.28094562]
[1729409048784,6.94029571,159.21,159.09,23.28094562]
[1729409054195,23.776884,159.2,159.09,23.28094562]
[1729409054784,15.0011,159.19,159.09,23.28094562]
[1729409055370,15.0011,159.19,159.09,20.0]
[1729409056201,23.776884,159.18,159.09,20.0]
[1729409056377,30.0,159.16,159.09,20.0]
[1729409056572,36.169,159.16,159.09,20.0]
[1729409057888,37.11141119,159.16,159.09,20.0]
[1729409059471,7.11141119,159.16,159.09,20.0]
[1729409059672,7.11141119,159.16,159.07,4.80222026]
[1729409059978,7.11141119,159.16,159.08,6.55867831]
[1729409060179,7.11141119,159.16,159.09,20.0]
[1729409060386,30.0,159.15,159.09,20.0]
[1729409061121,0.94241119,159.16,159.09,20.0]
[1729409069012,15.0011,159.19,159.09,35.5217]
[1729409073501,21.2829,159.19,159.09,20.0]
[1729409074016,15.0011,159.19,159.09,20.0]
[1729409075622,23.776884,159.18,159.09,20.0]
[1729409075927,24.67784029,159.18,159.09,20.0]
[1729409080323,24.67784029,159.18,159.06,24.83013237]
[1729409080502,24.67784029,159.18,159.09,20.0]
[1729409088438,30.96024029,159.18,159.09,20.0]
[1729409088737,30.059884,159.16,159.08,6.55032569]
[1729409088912,30.059884,159.16,159.05,16.6604]
[1729409089119,29.87144179,159.16,159.06,6.55263838]
[1729409090045,23.58844179,159.16,159.06,6.55263838]
[1729409090417,21.9741,159.17,159.06,6.55263838]
[1729409090616,21.9741,159.17,159.07,20.0]
[1729409102250,28.2567,159.17,159.07,20.0]
[1729409102434,21.9741,159.17,159.07,20.0]
[1729409103736,23.776884,159.16,159.07,20.0]
[1729409104133,23.776884,159.16,159.06,6.54255056]
[1729409104335,30.059884,159.16,159.06,6.54255056]
[1729409105042,23.776884,159.16,159.06,6.54255056]
[1729409105225,21.9741,159.17,159.06,6.54255056]
[1729409105547,21.9741,159.17,159.07,20.0]
[1729409107447,21.9741,159.17,159.07,18.5]
[1729409109546,21.9741,159.17,159.04,11.54524983]
[1729409109737,21.9741,159.17,159.07,20.0]
[1729409112448,21.9741,159.17,159.07,19.0]
[1729409119861,21.9741,159.17,159.05,20.0]
[1729409120031,21.9741,159.17,159.07,20.0]
[1729409125143,23.776884,159.16,159.07,20.0]
[1729409127450,30.060184,159.16,159.07,20.0]
[1729409133654,6.284,159.14,159.07,20.0]
[1729409133852,23.776884,159.16,159.07,20.0]
[1729409135369,24.64639776,159.14,159.07,20.0]
[1729409140245,30.93019776,159.14,159.07,20.0]
[1729409140870,24.64639776,159.14,159.07,20.0]
[1729409147273,30.93029776,159.14,159.07,20.0]
[1729409147487,24.64639776,159.14,159.07,20.0]
[1729409152879,30.93049776,159.14,159.07,20.0]
[1729409153182,24.64639776,159.14,159.07,20.0]
[1729409154280,30.93019776,159.14,159.07,20.0]
[1729409155302,24.64639776,159.14,159.07,20.0]
[1729409159303,24.64639776,159.14,159.06,6.54594109]
[1729409159304,21.5125,159.13,159.06,6.54594109]
[1729409159602,30.061784,159.12,159.06,6.54594109]
[1729409161281,23.776884,159.1,159.06,6.54594109]
[1729409161481,23.776884,159.1,159.04,0.6159667]
[1729409162899,21.5125,159.13,159.04,0.6159667]
[1729409162900,27.7967,159.13,159.04,0.6159667]
[1729409163110,21.5125,159.13,159.04,0.6159667]
[1729409164115,0.86951376,159.14,159.05,26.89765503]
[1729409164422,0.86951376,159.14,159.05,34.83913956]
[1729409166412,0.86951376,159.14,159.05,26.89765503]
[1729409172201,0.86951376,159.14,159.09,35.8905]
[1729409172396,0.90095629,159.18,159.09,35.8905]
[1729409176808,0.90095629,159.18,159.09,20.0]
[1729409177017,51.998884,159.17,159.05,5.5413376]
[1729409177219,51.998884,159.17,159.04,22.9825667]
[1729409177824,45.716284,159.17,159.04,22.9825667]
[1729409178518,45.716284,159.17,159.05,20.0]
[1729409179529,45.716284,159.17,159.05,26.89765503]
[1729409180424,21.9394,159.17,159.07,20.0]
[1729409182701,21.9394,159.17,159.06,20.0]
[1729409183618,21.9394,159.17,159.05,6.53314627]
[1729409184818,21.9394,159.17,159.06,20.0]
[1729409186032,23.776884,159.16,159.06,20.0]
[1729409191813,21.9394,159.17,159.06,20.0]
[1729409192428,21.9394,159.17,159.05,20.0]
[1729409192743,21.9394,159.17,159.05,26.52954475]
[1729409195446,21.9394,159.17,159.07,20.0]
[1729409199042,22.83176704,159.17,159.07,20.0]
[1729409220756,30.059884,159.16,159.07,20.0]
[1729409221144,6.2834,159.15,159.07,20.0]
[1729409221339,23.776884,159.16,159.07,20.0]
[1729409221547,30.059884,159.16,159.07,20.0]
[1729409221745,23.776884,159.16,159.07,20.0]
[1729409221936,15.8335,159.13,159.06,6.53270459]
[1729409222255,6.165,159.12,159.04,0.6159667]
[1729409222455,6.165,159.12,159.04,7.14869921]
[1729409223437,6.165,159.12,159.05,20.0]
[1729409225655,23.776884,159.11,159.04,0.6159667]
[1729409226743,23.776884,159.11,159.03,19.6159667]
[1729409227047,12.4496,159.12,159.03,19.6159667]
[1729409227048,6.165,159.12,159.04,6.89765503]
[1729409229359,6.165,159.12,159.05,20.0]
[1729409229947,6.165,159.12,159.03,20.0]
[1729409231143,6.165,159.12,159.03,19.0]
[1729409234074,6.165,159.12,159.03,25.89765503]
[1729409254489,16.72599952,159.13,159.05,20.0]
[1729409260969,16.72599952,159.13,159.06,23.776884]
[1729409261173,0.89249952,159.13,159.07,20.0]
[1729409281037,16.5073,159.12,159.07,20.0]
[1729409291223,16.5073,159.12,159.05,24.95332485]
[1729409291424,16.5073,159.12,159.06,6.52580575]
[1729409291607,16.5073,159.12,159.07,20.0]
[1729409306627,0.89249952,159.13,159.07,20.0]
[1729409306943,0.89249952,159.13,159.05,24.91729428]
[1729409307140,0.89249952,159.13,159.06,6.52631982]
[1729409307323,0.89249952,159.13,159.07,20.0]
[1729409313335,22.4518,159.16,159.07,20.0]
[1729409313644,22.4518,159.16,159.09,20.0]
[1729409320621,22.4518,159.16,159.08,20.0]
[1729409323954,22.4518,159.16,159.05,20.0]
[1729409324253,28.735,159.16,159.07,20.0]
[1729409339577,6.2838,159.14,159.07,20.0]
[1729409339862,7.20015538,159.14,159.07,20.0]
[1729409342355,0.91635538,159.14,159.07,20.0]
[1729409355462,6.2842,159.13,159.07,20.0]
[1729409357873,7.20005538,159.14,159.07,20.0]
[1729409362688,30.061084,159.13,159.06,6.55991953]
[1729409363769,23.776884,159.13,159.06,6.55991953]
[1729409363970,28.5086,159.12,159.06,6.55991953]
[1729409365383,23.776884,159.11,159.06,6.55991953]
[1729409365981,23.776884,159.11,159.02,20.0]
[1729409366184,24.71961313,159.11,159.02,20.0]
[1729409366380,24.71961313,159.11,159.04,20.0]
[1729409367280,31.00461313,159.11,159.04,20.0]